{"text_format":"1","workbook":"xlsx","n_sheets":3,"sheets":["Elite","Junioren","Daten"],"not_rendered":{"charts":0,"images":1,"macros":0,"external_links":0,"defined_names":6,"comments":2,"pivot_tables":0},"unopened":[],"bounds":{"document_bytes":16777216,"sheet_cells":100000,"rows_first":2000,"rows_last":500,"rows_between":2000,"halvings":0,"cell_chars":16384,"cell_head_chars":4096},"cells_cut":0,"cells_raw":0,"read":"whole","date_system":"1900"}

{"sheet":"Elite","index":0,"n_rows":48,"n_cols":10,"rows_kept":48,"cut":false,"hidden":false,"merged":[[39,8,39,9],[40,8,40,9],[41,8,41,9],[42,1,42,4],[34,3,34,6],[35,3,35,6],[36,3,36,6],[37,0,37,9],[32,8,32,9],[33,8,33,9],[38,8,38,9],[34,8,34,9],[35,8,35,9],[36,8,36,9],[27,8,27,9],[29,8,29,9],[30,8,30,9],[31,8,31,9],[21,8,21,9],[22,8,22,9],[23,8,23,9],[24,8,24,9],[25,8,25,9],[26,8,26,9],[28,8,28,9],[8,6,8,9],[15,3,15,6],[16,3,16,6],[12,2,12,4],[17,3,17,6],[18,3,18,6],[19,3,19,6],[21,3,21,6],[22,3,22,6],[27,3,27,6],[23,3,23,6],[24,3,24,6],[25,3,25,6],[26,3,26,6],[28,3,28,6],[29,3,29,6],[40,3,40,6],[41,3,41,6],[30,3,30,6],[31,3,31,6],[32,3,32,6],[33,3,33,6],[38,3,38,6],[39,3,39,6]]}
[]
[]
[]
[]
[]
[]
[]
[]
["Teilnehmerliste Verbandsmatch Gewehr 50m",null,null,null,null,2025,"2025-10-04"]
["Liste  des participants match inter-fédérations carabine 50m",null,null,null,null,null,null,null,null,"Zelgli / Schwadernau"]
[]
[]
["Unterverband:",null,{"$f":"IF($A$15<>\"\",VLOOKUP($A$15,elite,2,FALSE),\" \")","v":" "},null,null,{"$f":"IF($A$15<>\"\",VLOOKUP($A$15,elite,4,FALSE),\" \")","v":" "},null,null,null,"Elite"]
["Sous-fédération"]
[]
["Adresse Matchchef:"]
["I'adresse chef de match"]
[]
[]
[]
[]
["Ablösung\nSérie",null,null,"Name / Vorname\nNome et prénom",null,null,null,"Jahrgang\nannée","Lizenz Nr.\nliz no."]
[]
[]
[]
[]
[]
[]
[]
[]
[]
[]
[]
[]
[]
[]
[]
["EINZELSCHÜTZEN"]
[]
[]
[]
[]
["Datum:"]
[]
["Die Teilnehmer sind Schriftlich und gut leserlich bis am 14. September 2025 anzumelden an:"]
["L'annonce des participants doit être adressée jusqu'au 14. septembre 2025 à:"]
["Armando Amrein, Entlebucherstrasse 36, 6110 Wolhusen, Tel. 041- 490 13 41 / 079- 424 05 34"]
["E-Mail: ","ssv@armando-amrein.ch"]

{"sheet":"Junioren","index":1,"n_rows":48,"n_cols":17,"rows_kept":48,"cut":false,"hidden":false,"merged":[[30,3,30,6],[35,3,35,6],[36,3,36,6],[31,3,31,6],[34,3,34,6],[32,3,32,6],[33,3,33,6],[26,3,26,6],[27,3,27,6],[28,3,28,6],[29,3,29,6],[22,3,22,6],[23,3,23,6],[24,3,24,6],[25,3,25,6],[17,3,17,6],[18,3,18,6],[19,3,19,6],[21,3,21,6],[8,6,8,9],[15,3,15,6],[16,3,16,6],[12,2,12,4],[38,3,38,6],[42,1,42,4],[37,0,37,9],[43,0,43,2],[43,3,43,6],[39,3,39,6],[40,3,40,6],[41,3,41,6]]}
[null,null,null,null,null,null,null,null,null,null,2006]
[]
[]
[]
[]
[]
[]
[null,null,null,null,null,null,null,null,null,null,null,null,null,1998,{"$f":"$F$9","v":2025},{"$f":"O8-N8","v":27},"ELITE"]
["Teilnehmerliste Verbandsmatch Gewehr 50m",null,null,null,null,{"$f":"Elite!F9","v":2025},{"$f":"Elite!G9+1","v":"2025-10-05"},null,null,null,null,null,null,1999,2025,26,"ELITE"]
["Liste  des participants match inter-fédérations carabine 50m",null,null,null,null,null,null,null,null,{"$f":"Elite!J10","v":"Zelgli / Schwadernau"},null,null,null,2000,2025,25,"ELITE"]
[null,null,null,null,null,null,null,null,null,null,null,null,null,2001,2025,24,"ELITE"]
[null,null,null,null,null,null,null,null,null,null,null,null,null,2002,{"$f":"$F$9","v":2025},{"$f":"O12-N12","v":23},"ELITE"]
["Unterverband:",null,{"$f":"IF($A$15<>\"\",VLOOKUP($A$15,junior,2,FALSE),\" \")","v":"Zürich"},null,null,{"$f":"IF($A$15<>\"\",VLOOKUP($A$15,junior,4,FALSE),\" \")","v":5},null,null,null,"Junioren",null,null,null,{"$f":"$F$9-20","v":2005},2025,{"$f":"O13-N13","v":20},"U21"]
["Sous-fédération",null,null,null,null,null,null,null,null,null,null,null,null,{"$f":"$F$9-19","v":2006},2025,{"$f":"O14-N14","v":19},"U21"]
[17,null,null,null,null,null,null,null,null,null,null,null,null,{"$f":"$F$9-18","v":2007},2025,{"$f":"O15-N15","v":18},"U19"]
["Adresse Matchchef:",null,null,null,null,null,null,null,null,null,null,null,null,{"$f":"$F$9-17","v":2008},2025,{"$f":"O16-N16","v":17},"U19"]
["I'adresse chef de match",null,null,null,null,null,null,null,null,null,null,null,null,{"$f":"$F$9-16","v":2009},2025,16,"U13-U17"]
[null,null,null,null,null,null,null,null,null,null,null,null,null,{"$f":"$F$9-15","v":2010},2025,15,"U13-U17"]
[null,null,null,null,null,null,null,null,null,null,null,null,null,{"$f":"$F$9-14","v":2011},{"$f":"$F$9","v":2025},14,"U13-U17"]
[null,null,null,null,null,null,null,null,null,null,null,null,null,{"$f":"$F$9-13","v":2012},2025,13,"U13-U17"]
[null,null,null,null,null,null,null,null,null,null,null,null,null,{"$f":"$F$9-12","v":2013},2025,12,"U13-U17"]
["Ablösung\nSérie",null,null,"Name / Vorname\nNome et prénom",null,null,null,"Jahrgang\nannée","Kat.\ncat.","Lizenz Nr.\nliz no",null,null,null,{"$f":"$F$9-11","v":2014},2025,11,"U13-U17"]
[null,null,null,null,null,null,null,null,{"$f":"IF(H23=\"\",\"\",VLOOKUP($K$23:$K$42,$P$8:$Q$25,2,FALSE))","v":""},null,{"$f":"IF(H23=\"\",\"\",$F$9-H23)","v":""},null,null,{"$f":"$F$9-10","v":2015},2025,10,"U13-U17"]
[null,null,null,null,null,null,null,null,"",null,{"$f":"IF(H24=\"\",\"\",$F$9-H24)","v":""},null,null,{"$f":"$F$9-9","v":2016},2025,9,"U13-U17"]
[null,null,null,null,null,null,null,null,"",null,"",null,null,{"$f":"$F$9-8","v":2017},2025,8,"U13-U17"]
[null,null,null,null,null,null,null,null,"",null,""]
[null,null,null,null,null,null,null,null,"",null,""]
[null,null,null,null,null,null,null,null,"",null,""]
[null,null,null,null,null,null,null,null,"",null,""]
[null,null,null,null,null,null,null,null,"",null,""]
[null,null,null,null,null,null,null,null,"",null,""]
[null,null,null,null,null,null,null,null,"",null,""]
[null,null,null,null,null,null,null,null,"",null,""]
[null,null,null,null,null,null,null,null,"",null,""]
[null,null,null,null,null,null,null,null,"",null,""]
[null,null,null,null,null,null,null,null,"",null,""]
[null,null,null,null,null,null,null,null,"",null,""]
["EINZELSCHÜTZEN",null,null,null,null,null,null,null,null,null,""]
[null,null,null,null,null,null,null,null,{"$f":"IF(H39=\"\",\"\",VLOOKUP($K$23:$K$42,$P$8:$Q$25,2,FALSE))","v":""},null,""]
[null,null,null,null,null,null,null,null,{"$f":"IF(H40=\"\",\"\",VLOOKUP($K$23:$K$42,$P$8:$Q$25,2,FALSE))","v":""},null,""]
[null,null,null,null,null,null,null,null,{"$f":"IF(H41=\"\",\"\",VLOOKUP($K$23:$K$42,$P$8:$Q$25,2,FALSE))","v":""},null,""]
[null,null,null,null,null,null,null,null,{"$f":"IF(H42=\"\",\"\",VLOOKUP($K$23:$K$42,$P$8:$Q$25,2,FALSE))","v":""},null,""]
["Datum:"]
[]
[{"$f":"Elite!A45","v":"Die Teilnehmer sind Schriftlich und gut leserlich bis am 14. September 2025 anzumelden an:"}]
[{"$f":"Elite!A46","v":"L'annonce des participants doit être adressée jusqu'au 14. septembre 2025 à:"}]
[{"$f":"Elite!A47","v":"Armando Amrein, Entlebucherstrasse 36, 6110 Wolhusen, Tel. 041- 490 13 41 / 079- 424 05 34"}]
["E-Mail: ","ssv@armando-amrein.ch"]

{"sheet":"Daten","index":2,"n_rows":131,"n_cols":66,"rows_kept":131,"cut":false,"hidden":true,"merged":[]}
[null,"ELITE",null,null,1,null,null,2,null,null,3,null,null,4,null,null,5,null,null,6,null,null,7,null,null,8,null,null,9,null,null,10,null,null,11,null,null,12,null,null,13,null,null,14,null,null,15,null,null,16,null,null,17,null,null,18,null,null,19]
[null,null,null,null,"A","S","N","A","S","N","A","S","N","A","S","N","A","S","N","A","S","N","A","S","N","A","S","N","A","S","N","A","S","N","A","S","N","A","S","N","A","S","N","A","S","N","A","S","N","A","S","N","A","S","N","A","S","N","A","S","N",null,null,138,null,1]
[1,"Aargau","AG",5,null,null,{"$f":"E3*100+F3","v":0},null,null,{"$f":"H3*100+I3","v":0},null,null,{"$f":"K3*100+L3","v":0},null,null,{"$f":"N3*100+O3","v":0},null,null,{"$f":"Q3*100+R3","v":0},null,null,{"$f":"T3*100+U3","v":0},null,null,{"$f":"W3*100+X3","v":0},null,null,{"$f":"Z3*100+AA3","v":0},null,null,{"$f":"AC3*100+AD3","v":0},null,null,{"$f":"AF3*100+AG3","v":0},null,null,{"$f":"AI3*100+AJ3","v":0},null,null,{"$f":"AL3*100+AM3","v":0},null,null,{"$f":"AO3*100+AP3","v":0},null,null,{"$f":"AR3*100+AS3","v":0},null,null,{"$f":"AU3*100+AV3","v":0},null,null,{"$f":"AX3*100+AY3","v":0},null,null,{"$f":"BA3*100+BB3","v":0},null,null,{"$f":"BD3*100+BE3","v":0},null,null,{"$f":"BG3*100+BH3","v":0},{"$f":"COUNTA(F3,I3,L3,O3,R3,U3,X3,AA3,AD3,AG3,AJ3,AM3,AP3,AS3,AV3,AY3,BB3,BE3,BH3)","v":0},{"$f":"IF(D3=\"\",\"\",D3-BJ3)","v":5},null,null,2]
[2,"Basel","BS",4,null,null,{"$f":"E4*100+F4","v":0},null,null,{"$f":"H4*100+I4","v":0},null,null,{"$f":"K4*100+L4","v":0},null,null,{"$f":"N4*100+O4","v":0},null,null,{"$f":"Q4*100+R4","v":0},null,null,{"$f":"T4*100+U4","v":0},null,null,{"$f":"W4*100+X4","v":0},null,null,{"$f":"Z4*100+AA4","v":0},null,null,{"$f":"AC4*100+AD4","v":0},null,null,{"$f":"AF4*100+AG4","v":0},null,null,{"$f":"AI4*100+AJ4","v":0},null,null,{"$f":"AL4*100+AM4","v":0},null,null,{"$f":"AO4*100+AP4","v":0},null,null,{"$f":"AR4*100+AS4","v":0},null,null,{"$f":"AU4*100+AV4","v":0},null,null,{"$f":"AX4*100+AY4","v":0},null,null,{"$f":"BA4*100+BB4","v":0},null,null,{"$f":"BD4*100+BE4","v":0},null,null,{"$f":"BG4*100+BH4","v":0},{"$f":"COUNTA(F4,I4,L4,O4,R4,U4,X4,AA4,AD4,AG4,AJ4,AM4,AP4,AS4,AV4,AY4,BB4,BE4,BH4)","v":0},{"$f":"IF(D4=\"\",\"\",D4-BJ4)","v":4},"ELITE",null,3]
[3,"Bern","BE",6,null,null,0,null,null,0,null,null,0,null,null,0,null,null,0,null,null,0,null,null,0,null,null,0,null,null,0,null,null,0,null,null,0,null,null,0,null,null,0,null,null,0,null,null,0,null,null,0,null,null,0,null,null,0,null,null,0,0,6,null,null,4]
[4,"Fribourg","FR",5,null,null,0,null,null,0,null,null,0,null,null,0,null,null,0,null,null,0,null,null,0,null,null,0,null,null,0,null,null,0,null,null,0,null,null,0,null,null,0,null,null,0,null,null,0,null,null,0,null,null,0,null,null,0,null,null,0,0,5,null,null,5]
[5,"Genf","GE",3,null,null,0,null,null,0,null,null,0,null,null,0,null,null,0,null,null,0,null,null,0,null,null,0,null,null,0,null,null,0,null,null,0,null,null,0,null,null,0,null,null,0,null,null,0,null,null,0,null,null,0,null,null,0,null,null,0,0,3,null,null,6]
[6,"Glarus","GL",3,null,null,0,null,null,0,null,null,0,null,null,0,null,null,0,null,null,0,null,null,0,null,null,0,null,null,0,null,null,0,null,null,0,null,null,0,null,null,0,null,null,0,null,null,0,null,null,0,null,null,0,null,null,0,null,null,0,0,3,null,null,7]
[7,"Graubünden","GR",4,null,null,0,null,null,0,null,null,0,null,null,0,null,null,0,null,null,0,null,null,0,null,null,0,null,null,0,null,null,0,null,null,0,null,null,0,null,null,0,null,null,0,null,null,0,null,null,0,null,null,0,null,null,0,null,null,0,0,4,null,null,8]
[8,"Jura","JU",3,null,null,0,null,null,0,null,null,0,null,null,0,null,null,0,null,null,0,null,null,0,null,null,0,null,null,0,null,null,0,null,null,0,null,null,0,null,null,0,null,null,0,null,null,0,null,null,0,null,null,0,null,null,0,null,null,0,0,3,null,null,9]
[9,"Linth","LI",3,null,null,0,null,null,0,null,null,0,null,null,0,null,null,0,null,null,0,null,null,0,null,null,0,null,null,0,null,null,0,null,null,0,null,null,0,null,null,0,null,null,0,null,null,0,null,null,0,null,null,0,null,null,0,null,null,0,0,3,null,null,10]
[10,"Neuchâtel","NE",3,null,null,0,null,null,0,null,null,0,null,null,0,null,null,0,null,null,0,null,null,0,null,null,0,null,null,0,null,null,0,null,null,0,null,null,0,null,null,0,null,null,0,null,null,0,null,null,0,null,null,0,null,null,0,null,null,0,0,3,null,null,11]
[11,"Ostschweiz","OS",5,null,null,0,null,null,0,null,null,0,null,null,0,null,null,0,null,null,0,null,null,0,null,null,0,null,null,0,null,null,0,null,null,0,null,null,0,null,null,0,null,null,0,null,null,0,null,null,0,null,null,0,null,null,0,null,null,0,0,5,null,null,12]
[12,"Rollstuhlsport","RS",null,null,null,0,null,null,0,null,null,0,null,null,0,null,null,0,null,null,0,null,null,0,null,null,0,null,null,0,null,null,0,null,null,0,null,null,0,null,null,0,null,null,0,null,null,0,null,null,0,null,null,0,null,null,0,null,null,0,0,"",null,null,13]
[13,"Solothurn","SO",5,null,null,0,null,null,0,null,null,0,null,null,0,null,null,0,null,null,0,null,null,0,null,null,0,null,null,0,null,null,0,null,null,0,null,null,0,null,null,0,null,null,0,null,null,0,null,null,0,null,null,0,null,null,0,null,null,0,0,5,null,null,14]
[14,"Ticino","TI",5,null,null,0,null,null,0,null,null,0,null,null,0,null,null,0,null,null,0,null,null,0,null,null,0,null,null,0,null,null,0,null,null,0,null,null,0,null,null,0,null,null,0,null,null,0,null,null,0,null,null,0,null,null,0,null,null,0,0,5,null,null,15]
[15,"Vaud","VD",5,null,null,0,null,null,0,null,null,0,null,null,0,null,null,0,null,null,0,null,null,0,null,null,0,null,null,0,null,null,0,null,null,0,null,null,0,null,null,0,null,null,0,null,null,0,null,null,0,null,null,0,null,null,0,null,null,0,0,5,null,null,16]
[16,"Valais","VS",5,null,null,0,null,null,0,null,null,0,null,null,0,null,null,0,null,null,0,null,null,0,null,null,0,null,null,0,null,null,0,null,null,0,null,null,0,null,null,0,null,null,0,null,null,0,null,null,0,null,null,0,null,null,0,null,null,0,0,5,null,null,17]
[17,"Zentralschweiz","ZE",6,null,null,0,null,null,0,null,null,0,null,null,0,null,null,0,null,null,0,null,null,0,null,null,0,null,null,0,null,null,0,null,null,0,null,null,0,null,null,0,null,null,0,null,null,0,null,null,0,null,null,0,null,null,0,null,null,0,0,6,null,null,18]
[18,"Zürich","ZH",5,null,null,0,null,null,0,null,null,0,null,null,0,null,null,0,null,null,0,null,null,0,null,null,0,null,null,0,null,null,0,null,null,0,null,null,0,null,null,0,null,null,0,null,null,0,null,null,0,null,null,0,null,null,0,null,null,0,0,5,null,null,19]
[null,null,null,null,null,null,0,null,null,0,null,null,0,null,null,0,null,null,0,null,null,0,null,null,0,null,null,0,null,null,0,null,null,0,null,null,0,null,null,0,null,null,0,null,null,0,null,null,0,null,null,0,null,null,0,null,null,0,null,null,0,0,"",null,null,20]
[null,0,0,null,null,null,0,null,null,0,null,null,0,null,null,0,null,null,0,null,null,0,null,null,0,null,null,0,null,null,0,null,null,0,null,null,0,null,null,0,null,null,0,null,null,0,null,null,0,null,null,0,null,null,0,null,null,0,null,null,0,0,"",null,null,21]
[null,null,null,null,null,null,0,null,null,0,null,null,0,null,null,0,null,null,0,null,null,0,null,null,0,null,null,0,null,null,0,null,null,0,null,null,0,null,null,0,null,null,0,null,null,0,null,null,0,null,null,0,null,null,0,null,null,0,null,null,0,0,"",null,null,22]
[null,null,null,null,null,null,0,null,null,0,null,null,0,null,null,0,null,null,0,null,null,0,null,null,0,null,null,0,null,null,0,null,null,0,null,null,0,null,null,0,null,null,0,null,null,0,null,null,0,null,null,0,null,null,0,null,null,0,null,null,0,0,"",null,null,23]
[null,null,null,null,null,null,0,null,null,0,null,null,0,null,null,0,null,null,0,null,null,0,null,null,0,null,null,0,null,null,0,null,null,0,null,null,0,null,null,0,null,null,0,null,null,0,null,null,0,null,null,0,null,null,0,null,null,0,null,null,0,0,"",null,null,24]
[null,null,null,null,null,null,0,null,null,0,null,null,0,null,null,0,null,null,0,null,null,0,null,null,0,null,null,0,null,null,0,null,null,0,null,null,0,null,null,0,null,null,0,null,null,0,null,null,0,null,null,0,null,null,0,null,null,0,null,null,0,0,"",null,null,25]
[null,null,null,null,null,null,0,null,null,0,null,null,0,null,null,0,null,null,0,null,null,0,null,null,0,null,null,0,null,null,0,null,null,0,null,null,0,null,null,0,null,null,0,null,null,0,null,null,0,null,null,0,null,null,0,null,null,0,null,null,0,0,{"$f":"D27-BJ27","v":0},null,null,26]
[null,null,null,{"$f":"SUM(D3:D27)","v":75},null,null,0,null,null,0,null,null,0,null,null,0,null,null,0,null,null,0,null,null,0,null,null,0,null,null,0,null,null,0,null,null,0,null,null,0,null,null,0,null,null,0,null,null,0,null,null,0,null,null,0,null,null,0,null,null,0,{"$f":"SUM(BJ3:BJ27)","v":0},{"$f":"D28-BJ28","v":75},null,null,27]
[null,"JUNIOREN",null,null,null,null,0,null,null,0,null,null,0,null,null,0,null,null,0,null,null,0,null,null,0,null,null,0,null,null,0,null,null,0,null,null,0,null,null,0,null,null,0,null,null,0,null,null,0,null,null,0,null,null,0,null,null,0,null,null,0,null,null,null,null,28]
[null,null,null,null,null,null,0,null,null,0,null,null,0,null,null,0,null,null,0,null,null,0,null,null,0,null,null,0,null,null,0,null,null,0,null,null,0,null,null,0,null,null,0,null,null,0,null,null,0,null,null,0,null,null,0,null,null,0,null,null,0,{"$f":"COUNTA(A30:E30)/2","v":0},null,null,null,29]
[1,"Aargau","AG",4,null,null,0,null,null,0,null,null,0,null,null,0,null,null,0,null,null,0,null,null,0,null,null,0,null,null,0,null,null,0,null,null,0,null,null,0,null,null,0,null,null,0,null,null,0,null,null,0,null,null,0,null,null,0,null,null,0,{"$f":"COUNTA(F31,I31,L31,O31,R31,U31,X31,AA31,AD31,AG31,AJ31,AM31,AP31,AS31,AV31,AY31,BB31,BE31,BH31)","v":0},{"$f":"IF(D31=\"\",\"\",D31-BJ31)","v":4},131,null,30]
[2,"Basel","BS",3,null,null,0,null,null,0,null,null,0,null,null,0,null,null,0,null,null,0,null,null,0,null,null,0,null,null,0,null,null,0,null,null,0,null,null,0,null,null,0,null,null,0,null,null,0,null,null,0,null,null,0,null,null,0,null,null,0,0,{"$f":"IF(D32=\"\",\"\",D32-BJ32)","v":3},null,null,31]
[3,"Bern","BE",6,null,null,0,null,null,0,null,null,0,null,null,0,null,null,0,null,null,0,null,null,0,null,null,0,null,null,0,null,null,0,null,null,0,null,null,0,null,null,0,null,null,0,null,null,0,null,null,0,null,null,0,null,null,0,null,null,0,0,6,"JUNIOREN",null,32]
[4,"Fribourg","FR",4,null,null,0,null,null,0,null,null,0,null,null,0,null,null,0,null,null,0,null,null,0,null,null,0,null,null,0,null,null,0,null,null,0,null,null,0,null,null,0,null,null,0,null,null,0,null,null,0,null,null,0,null,null,0,null,null,0,0,4,null,null,33]
[5,"Genf","GE",3,null,null,0,null,null,0,null,null,0,null,null,0,null,null,0,null,null,0,null,null,0,null,null,0,null,null,0,null,null,0,null,null,0,null,null,0,null,null,0,null,null,0,null,null,0,null,null,0,null,null,0,null,null,0,null,null,0,0,3,null,null,34]
[6,"Glarus","GL",3,null,null,0,null,null,0,null,null,0,null,null,0,null,null,0,null,null,0,null,null,0,null,null,0,null,null,0,null,null,0,null,null,0,null,null,0,null,null,0,null,null,0,null,null,0,null,null,0,null,null,0,null,null,0,null,null,0,0,3,null,null,35]
[7,"Graubünden","GR",4,null,null,0,null,null,0,null,null,0,null,null,0,null,null,0,null,null,0,null,null,0,null,null,0,null,null,0,null,null,0,null,null,0,null,null,0,null,null,0,null,null,0,null,null,0,null,null,0,null,null,0,null,null,0,null,null,0,0,4,null,null,36]
[8,"Jura","JU",3,null,null,0,null,null,0,null,null,0,null,null,0,null,null,0,null,null,0,null,null,0,null,null,0,null,null,0,null,null,0,null,null,0,null,null,0,null,null,0,null,null,0,null,null,0,null,null,0,null,null,0,null,null,0,null,null,0,0,3,null,null,37]
[9,"Linth","LI",3,null,null,0,null,null,0,null,null,0,null,null,0,null,null,0,null,null,0,null,null,0,null,null,0,null,null,0,null,null,0,null,null,0,null,null,0,null,null,0,null,null,0,null,null,0,null,null,0,null,null,0,null,null,0,null,null,0,0,3,null,null,38]
[10,"Neuchâtel","NE",3,null,null,0,null,null,0,null,null,0,null,null,0,null,null,0,null,null,0,null,null,0,null,null,0,null,null,0,null,null,0,null,null,0,null,null,0,null,null,0,null,null,0,null,null,0,null,null,0,null,null,0,null,null,0,null,null,0,0,3,null,null,39]
[11,"Ostschweiz","OS",5,null,null,0,null,null,0,null,null,0,null,null,0,null,null,0,null,null,0,null,null,0,null,null,0,null,null,0,null,null,0,null,null,0,null,null,0,null,null,0,null,null,0,null,null,0,null,null,0,null,null,0,null,null,0,null,null,0,0,5,null,null,40]
[12,"Solothurn","SO",5,null,null,0,null,null,0,null,null,0,null,null,0,null,null,0,null,null,0,null,null,0,null,null,0,null,null,0,null,null,0,null,null,0,null,null,0,null,null,0,null,null,0,null,null,0,null,null,0,null,null,0,null,null,0,null,null,0,0,5,null,null,41]
[13,"Ticino","TI",4,null,null,0,null,null,0,null,null,0,null,null,0,null,null,0,null,null,0,null,null,0,null,null,0,null,null,0,null,null,0,null,null,0,null,null,0,null,null,0,null,null,0,null,null,0,null,null,0,null,null,0,null,null,0,null,null,0,0,4,null,null,42]
[14,"Vaud","VD",4,null,null,0,null,null,0,null,null,0,null,null,0,null,null,0,null,null,0,null,null,0,null,null,0,null,null,0,null,null,0,null,null,0,null,null,0,null,null,0,null,null,0,null,null,0,null,null,0,null,null,0,null,null,0,null,null,0,0,4,null,null,43]
[15,"Valais","VS",4,null,null,0,null,null,0,null,null,0,null,null,0,null,null,0,null,null,0,null,null,0,null,null,0,null,null,0,null,null,0,null,null,0,null,null,0,null,null,0,null,null,0,null,null,0,null,null,0,null,null,0,null,null,0,null,null,0,0,4,null,null,44]
[16,"Zentralschweiz","ZE",6,null,null,0,null,null,0,null,null,0,null,null,0,null,null,0,null,null,0,null,null,0,null,null,0,null,null,0,null,null,0,null,null,0,null,null,0,null,null,0,null,null,0,null,null,0,null,null,0,null,null,0,null,null,0,null,null,0,0,6,null,null,45]
[17,"Zürich","ZH",5,null,null,0,null,null,0,null,null,0,null,null,0,null,null,0,null,null,0,null,null,0,null,null,0,null,null,0,null,null,0,null,null,0,null,null,0,null,null,0,null,null,0,null,null,0,null,null,0,null,null,0,null,null,0,null,null,0,0,5,null,null,46]
[null,null,null,null,null,null,0,null,null,0,null,null,0,null,null,0,null,null,0,null,null,0,null,null,0,null,null,0,null,null,0,null,null,0,null,null,0,null,null,0,null,null,0,null,null,0,null,null,0,null,null,0,null,null,0,null,null,0,null,null,0,0,"",null,null,47]
[null,null,null,null,null,null,0,null,null,0,null,null,0,null,null,0,null,null,0,null,null,0,null,null,0,null,null,0,null,null,0,null,null,0,null,null,0,null,null,0,null,null,0,null,null,0,null,null,0,null,null,0,null,null,0,null,null,0,null,null,0,0,"",null,null,48]
[null,null,null,null,null,null,0,null,null,0,null,null,0,null,null,0,null,null,0,null,null,0,null,null,0,null,null,0,null,null,0,null,null,0,null,null,0,null,null,0,null,null,0,null,null,0,null,null,0,null,null,0,null,null,0,null,null,0,null,null,0,0,"",null,null,49]
[null,null,null,null,null,null,0,null,null,0,null,null,0,null,null,0,null,null,0,null,null,0,null,null,0,null,null,0,null,null,0,null,null,0,null,null,0,null,null,0,null,null,0,null,null,0,null,null,0,null,null,0,null,null,0,null,null,0,null,null,0,0,"",null,null,50]
[null,null,null,null,null,null,0,null,null,0,null,null,0,null,null,0,null,null,0,null,null,0,null,null,0,null,null,0,null,null,0,null,null,0,null,null,0,null,null,0,null,null,0,null,null,0,null,null,0,null,null,0,null,null,0,null,null,0,null,null,0,0,"",null,null,51]
[null,null,null,null,null,null,0,null,null,0,null,null,0,null,null,0,null,null,0,null,null,0,null,null,0,null,null,0,null,null,0,null,null,0,null,null,0,null,null,0,null,null,0,null,null,0,null,null,0,null,null,0,null,null,0,null,null,0,null,null,0,0,"",null,null,52]
[null,null,null,null,null,null,0,null,null,0,null,null,0,null,null,0,null,null,0,null,null,0,null,null,0,null,null,0,null,null,0,null,null,0,null,null,0,null,null,0,null,null,0,null,null,0,null,null,0,null,null,0,null,null,0,null,null,0,null,null,0,0,"",null,null,53]
[null,null,null,null,null,null,0,null,null,0,null,null,0,null,null,0,null,null,0,null,null,0,null,null,0,null,null,0,null,null,0,null,null,0,null,null,0,null,null,0,null,null,0,null,null,0,null,null,0,null,null,0,null,null,0,null,null,0,null,null,0,0,{"$f":"D55-BJ55","v":0},null,null,54]
[null,null,null,{"$f":"SUM(D31:D55)","v":69},null,null,0,null,null,0,null,null,0,null,null,0,null,null,0,null,null,0,null,null,0,null,null,0,null,null,0,null,null,0,null,null,0,null,null,0,null,null,0,null,null,0,null,null,0,null,null,0,null,null,0,null,null,0,null,null,0,{"$f":"SUM(BJ30:BJ55)","v":0},{"$f":"D56-BJ56","v":69},null,null,55]
[null,null,null,null,null,null,null,null,null,null,null,null,null,null,null,null,null,null,null,null,null,null,null,null,null,null,null,null,null,null,null,null,null,null,null,null,null,null,null,null,null,null,null,null,null,null,null,null,null,null,null,null,null,null,null,null,null,null,null,null,null,null,null,null,null,56]
[null,null,null,null,null,null,null,null,null,null,null,null,null,null,null,null,null,null,null,null,null,null,null,null,null,null,null,null,null,null,null,null,null,null,null,null,null,null,null,null,null,null,null,null,null,null,null,null,null,null,null,null,null,null,null,null,null,null,null,null,null,null,null,null,null,57]
[null,null,null,null,null,null,null,null,null,null,null,null,null,null,null,null,null,null,null,null,null,null,null,null,null,null,null,null,null,null,null,null,null,null,null,null,null,null,null,null,null,null,null,null,null,null,null,null,null,null,null,null,null,null,null,null,null,null,null,null,null,null,null,null,null,58]
[null,null,null,null,null,null,null,null,null,null,null,null,null,null,null,null,null,null,null,null,null,null,null,null,null,null,null,null,null,null,null,null,null,null,null,null,null,null,null,null,null,null,null,null,null,null,null,null,null,null,null,null,null,null,null,null,null,null,null,null,null,null,null,null,null,59]
[null,null,null,null,null,null,null,null,null,null,null,null,null,null,null,null,null,null,null,null,null,null,null,null,null,null,null,null,null,null,null,null,null,null,null,null,null,null,null,null,null,null,null,null,null,null,null,null,null,null,null,null,null,null,null,null,null,null,null,null,null,null,null,null,null,60]
[null,null,null,null,null,null,null,null,null,null,null,null,null,null,null,null,null,null,null,null,null,null,null,null,null,null,null,null,null,null,null,null,null,null,null,null,null,null,null,null,null,null,null,null,null,null,null,null,null,null,null,null,null,null,null,null,null,null,null,null,null,null,null,null,null,61]
[null,null,null,null,null,null,null,null,null,null,null,null,null,null,null,null,null,null,null,null,null,null,null,null,null,null,null,null,null,null,null,null,null,null,null,null,null,null,null,null,null,null,null,null,null,null,null,null,null,null,null,null,null,null,null,null,null,null,null,null,null,null,null,null,null,62]
[null,null,null,null,null,null,null,null,null,null,null,null,null,null,null,null,null,null,null,null,null,null,null,null,null,null,null,null,null,null,null,null,null,null,null,null,null,null,null,null,null,null,null,null,null,null,null,null,null,null,null,null,null,null,null,null,null,null,null,null,null,null,null,null,null,63]
[null,null,null,null,null,null,null,null,null,null,null,null,null,null,null,null,null,null,null,null,null,null,null,null,null,null,null,null,null,null,null,null,null,null,null,null,null,null,null,null,null,null,null,null,null,null,null,null,null,null,null,null,null,null,null,null,null,null,null,null,null,null,null,null,null,64]
[null,null,null,null,null,null,null,null,null,null,null,null,null,null,null,null,null,null,null,null,null,null,null,null,null,null,null,null,null,null,null,null,null,null,null,null,null,null,null,null,null,null,null,null,null,null,null,null,null,null,null,null,null,null,null,null,null,null,null,null,null,null,null,null,null,65]
[null,null,null,null,null,null,null,null,null,null,null,null,null,null,null,null,null,null,null,null,null,null,null,null,null,null,null,null,null,null,null,null,null,null,null,null,null,null,null,null,null,null,null,null,null,null,null,null,null,null,null,null,null,null,null,null,null,null,null,null,null,null,null,null,null,66]
[null,null,null,null,null,null,null,null,null,null,null,null,null,null,null,null,null,null,null,null,null,null,null,null,null,null,null,null,null,null,null,null,null,null,null,null,null,null,null,null,null,null,null,null,null,null,null,null,null,null,null,null,null,null,null,null,null,null,null,null,null,null,null,null,null,67]
[null,null,null,null,null,null,null,null,null,null,null,null,null,null,null,null,null,null,null,null,null,null,null,null,null,null,null,null,null,null,null,null,null,null,null,null,null,null,null,null,null,null,null,null,null,null,null,null,null,null,null,null,null,null,null,null,null,null,null,null,null,null,null,null,null,68]
[null,null,null,null,null,null,null,null,null,null,null,null,null,null,null,null,null,null,null,null,null,null,null,null,null,null,null,null,null,null,null,null,null,null,null,null,null,null,null,null,null,null,null,null,null,null,null,null,null,null,null,null,null,null,null,null,null,null,null,null,null,null,null,null,null,69]
[null,null,null,null,null,null,null,null,null,null,null,null,null,null,null,null,null,null,null,null,null,null,null,null,null,null,null,null,null,null,null,null,null,null,null,null,null,null,null,null,null,null,null,null,null,null,null,null,null,null,null,null,null,null,null,null,null,null,null,null,null,null,null,null,null,70]
[null,null,null,null,null,null,null,null,null,null,null,null,null,null,null,null,null,null,null,null,null,null,null,null,null,null,null,null,null,null,null,null,null,null,null,null,null,null,null,null,null,null,null,null,null,null,null,null,null,null,null,null,null,null,null,null,null,null,null,null,null,null,null,null,null,71]
[null,null,null,null,null,null,null,null,null,null,null,null,null,null,null,null,null,null,null,null,null,null,null,null,null,null,null,null,null,null,null,null,null,null,null,null,null,null,null,null,null,null,null,null,null,null,null,null,null,null,null,null,null,null,null,null,null,null,null,null,null,null,null,null,null,72]
[null,null,null,null,null,null,null,null,null,null,null,null,null,null,null,null,null,null,null,null,null,null,null,null,null,null,null,null,null,null,null,null,null,null,null,null,null,null,null,null,null,null,null,null,null,null,null,null,null,null,null,null,null,null,null,null,null,null,null,null,null,null,null,null,null,73]
[null,null,null,null,null,null,null,null,null,null,null,null,null,null,null,null,null,null,null,null,null,null,null,null,null,null,null,null,null,null,null,null,null,null,null,null,null,null,null,null,null,null,null,null,null,null,null,null,null,null,null,null,null,null,null,null,null,null,null,null,null,null,null,null,null,74]
[null,null,null,null,null,null,null,null,null,null,null,null,null,null,null,null,null,null,null,null,null,null,null,null,null,null,null,null,null,null,null,null,null,null,null,null,null,null,null,null,null,null,null,null,null,null,null,null,null,null,null,null,null,null,null,null,null,null,null,null,null,null,null,null,null,75]
[null,null,null,null,null,null,null,null,null,null,null,null,null,null,null,null,null,null,null,null,null,null,null,null,null,null,null,null,null,null,null,null,null,null,null,null,null,null,null,null,null,null,null,null,null,null,null,null,null,null,null,null,null,null,null,null,null,null,null,null,null,null,null,null,null,76]
[null,null,null,null,null,null,null,null,null,null,null,null,null,null,null,null,null,null,null,null,null,null,null,null,null,null,null,null,null,null,null,null,null,null,null,null,null,null,null,null,null,null,null,null,null,null,null,null,null,null,null,null,null,null,null,null,null,null,null,null,null,null,null,null,null,77]
[null,null,null,null,null,null,null,null,null,null,null,null,null,null,null,null,null,null,null,null,null,null,null,null,null,null,null,null,null,null,null,null,null,null,null,null,null,null,null,null,null,null,null,null,null,null,null,null,null,null,null,null,null,null,null,null,null,null,null,null,null,null,null,null,null,78]
[null,null,null,null,null,null,null,null,null,null,null,null,null,null,null,null,null,null,null,null,null,null,null,null,null,null,null,null,null,null,null,null,null,null,null,null,null,null,null,null,null,null,null,null,null,null,null,null,null,null,null,null,null,null,null,null,null,null,null,null,null,null,null,null,null,79]
[null,null,null,null,null,null,null,null,null,null,null,null,null,null,null,null,null,null,null,null,null,null,null,null,null,null,null,null,null,null,null,null,null,null,null,null,null,null,null,null,null,null,null,null,null,null,null,null,null,null,null,null,null,null,null,null,null,null,null,null,null,null,null,null,null,80]
[null,null,null,null,null,null,null,null,null,null,null,null,null,null,null,null,null,null,null,null,null,null,null,null,null,null,null,null,null,null,null,null,null,null,null,null,null,null,null,null,null,null,null,null,null,null,null,null,null,null,null,null,null,null,null,null,null,null,null,null,null,null,null,null,null,81]
[null,null,null,null,null,null,null,null,null,null,null,null,null,null,null,null,null,null,null,null,null,null,null,null,null,null,null,null,null,null,null,null,null,null,null,null,null,null,null,null,null,null,null,null,null,null,null,null,null,null,null,null,null,null,null,null,null,null,null,null,null,null,null,null,null,82]
[null,null,null,null,null,null,null,null,null,null,null,null,null,null,null,null,null,null,null,null,null,null,null,null,null,null,null,null,null,null,null,null,null,null,null,null,null,null,null,null,null,null,null,null,null,null,null,null,null,null,null,null,null,null,null,null,null,null,null,null,null,null,null,null,null,83]
[null,null,null,null,null,null,null,null,null,null,null,null,null,null,null,null,null,null,null,null,null,null,null,null,null,null,null,null,null,null,null,null,null,null,null,null,null,null,null,null,null,null,null,null,null,null,null,null,null,null,null,null,null,null,null,null,null,null,null,null,null,null,null,null,null,84]
[null,null,null,null,null,null,null,null,null,null,null,null,null,null,null,null,null,null,null,null,null,null,null,null,null,null,null,null,null,null,null,null,null,null,null,null,null,null,null,null,null,null,null,null,null,null,null,null,null,null,null,null,null,null,null,null,null,null,null,null,null,null,null,null,null,85]
[null,null,null,null,null,null,null,null,null,null,null,null,null,null,null,null,null,null,null,null,null,null,null,null,null,null,null,null,null,null,null,null,null,null,null,null,null,null,null,null,null,null,null,null,null,null,null,null,null,null,null,null,null,null,null,null,null,null,null,null,null,null,null,null,null,86]
[null,null,null,null,null,null,null,null,null,null,null,null,null,null,null,null,null,null,null,null,null,null,null,null,null,null,null,null,null,null,null,null,null,null,null,null,null,null,null,null,null,null,null,null,null,null,null,null,null,null,null,null,null,null,null,null,null,null,null,null,null,null,null,null,null,87]
[null,null,null,null,null,null,null,null,null,null,null,null,null,null,null,null,null,null,null,null,null,null,null,null,null,null,null,null,null,null,null,null,null,null,null,null,null,null,null,null,null,null,null,null,null,null,null,null,null,null,null,null,null,null,null,null,null,null,null,null,null,null,null,null,null,88]
[null,null,null,null,null,null,null,null,null,null,null,null,null,null,null,null,null,null,null,null,null,null,null,null,null,null,null,null,null,null,null,null,null,null,null,null,null,null,null,null,null,null,null,null,null,null,null,null,null,null,null,null,null,null,null,null,null,null,null,null,null,null,null,null,null,89]
[null,null,null,null,null,null,null,null,null,null,null,null,null,null,null,null,null,null,null,null,null,null,null,null,null,null,null,null,null,null,null,null,null,null,null,null,null,null,null,null,null,null,null,null,null,null,null,null,null,null,null,null,null,null,null,null,null,null,null,null,null,null,null,null,null,90]
[null,null,null,null,null,null,null,null,null,null,null,null,null,null,null,null,null,null,null,null,null,null,null,null,null,null,null,null,null,null,null,null,null,null,null,null,null,null,null,null,null,null,null,null,null,null,null,null,null,null,null,null,null,null,null,null,null,null,null,null,null,null,null,null,null,91]
[null,null,null,null,null,null,null,null,null,null,null,null,null,null,null,null,null,null,null,null,null,null,null,null,null,null,null,null,null,null,null,null,null,null,null,null,null,null,null,null,null,null,null,null,null,null,null,null,null,null,null,null,null,null,null,null,null,null,null,null,null,null,null,null,null,92]
[null,null,null,null,null,null,null,null,null,null,null,null,null,null,null,null,null,null,null,null,null,null,null,null,null,null,null,null,null,null,null,null,null,null,null,null,null,null,null,null,null,null,null,null,null,null,null,null,null,null,null,null,null,null,null,null,null,null,null,null,null,null,null,null,null,93]
[null,null,null,null,null,null,null,null,null,null,null,null,null,null,null,null,null,null,null,null,null,null,null,null,null,null,null,null,null,null,null,null,null,null,null,null,null,null,null,null,null,null,null,null,null,null,null,null,null,null,null,null,null,null,null,null,null,null,null,null,null,null,null,null,null,94]
[null,null,null,null,null,null,null,null,null,null,null,null,null,null,null,null,null,null,null,null,null,null,null,null,null,null,null,null,null,null,null,null,null,null,null,null,null,null,null,null,null,null,null,null,null,null,null,null,null,null,null,null,null,null,null,null,null,null,null,null,null,null,null,null,null,95]
[null,null,null,null,null,null,null,null,null,null,null,null,null,null,null,null,null,null,null,null,null,null,null,null,null,null,null,null,null,null,null,null,null,null,null,null,null,null,null,null,null,null,null,null,null,null,null,null,null,null,null,null,null,null,null,null,null,null,null,null,null,null,null,null,null,96]
[null,null,null,null,null,null,null,null,null,null,null,null,null,null,null,null,null,null,null,null,null,null,null,null,null,null,null,null,null,null,null,null,null,null,null,null,null,null,null,null,null,null,null,null,null,null,null,null,null,null,null,null,null,null,null,null,null,null,null,null,null,null,null,null,null,97]
[null,null,null,null,null,null,null,null,null,null,null,null,null,null,null,null,null,null,null,null,null,null,null,null,null,null,null,null,null,null,null,null,null,null,null,null,null,null,null,null,null,null,null,null,null,null,null,null,null,null,null,null,null,null,null,null,null,null,null,null,null,null,null,null,null,98]
[null,null,null,null,null,null,null,null,null,null,null,null,null,null,null,null,null,null,null,null,null,null,null,null,null,null,null,null,null,null,null,null,null,null,null,null,null,null,null,null,null,null,null,null,null,null,null,null,null,null,null,null,null,null,null,null,null,null,null,null,null,null,null,null,null,99]
[null,null,null,null,null,null,null,null,null,null,null,null,null,null,null,null,null,null,null,null,null,null,null,null,null,null,null,null,null,null,null,null,null,null,null,null,null,null,null,null,null,null,null,null,null,null,null,null,null,null,null,null,null,null,null,null,null,null,null,null,null,null,null,null,null,100]
[null,null,null,null,null,null,null,null,null,null,null,null,null,null,null,null,null,null,null,null,null,null,null,null,null,null,null,null,null,null,null,null,null,null,null,null,null,null,null,null,null,null,null,null,null,null,null,null,null,null,null,null,null,null,null,null,null,null,null,null,null,null,null,null,null,101]
[null,null,null,null,null,null,null,null,null,null,null,null,null,null,null,null,null,null,null,null,null,null,null,null,null,null,null,null,null,null,null,null,null,null,null,null,null,null,null,null,null,null,null,null,null,null,null,null,null,null,null,null,null,null,null,null,null,null,null,null,null,null,null,null,null,102]
[null,null,null,null,null,null,null,null,null,null,null,null,null,null,null,null,null,null,null,null,null,null,null,null,null,null,null,null,null,null,null,null,null,null,null,null,null,null,null,null,null,null,null,null,null,null,null,null,null,null,null,null,null,null,null,null,null,null,null,null,null,null,null,null,null,103]
[null,null,null,null,null,null,null,null,null,null,null,null,null,null,null,null,null,null,null,null,null,null,null,null,null,null,null,null,null,null,null,null,null,null,null,null,null,null,null,null,null,null,null,null,null,null,null,null,null,null,null,null,null,null,null,null,null,null,null,null,null,null,null,null,null,104]
[null,null,null,null,null,null,null,null,null,null,null,null,null,null,null,null,null,null,null,null,null,null,null,null,null,null,null,null,null,null,null,null,null,null,null,null,null,null,null,null,null,null,null,null,null,null,null,null,null,null,null,null,null,null,null,null,null,null,null,null,null,null,null,null,null,105]
[null,null,null,null,null,null,null,null,null,null,null,null,null,null,null,null,null,null,null,null,null,null,null,null,null,null,null,null,null,null,null,null,null,null,null,null,null,null,null,null,null,null,null,null,null,null,null,null,null,null,null,null,null,null,null,null,null,null,null,null,null,null,null,null,null,106]
[null,null,null,null,null,null,null,null,null,null,null,null,null,null,null,null,null,null,null,null,null,null,null,null,null,null,null,null,null,null,null,null,null,null,null,null,null,null,null,null,null,null,null,null,null,null,null,null,null,null,null,null,null,null,null,null,null,null,null,null,null,null,null,null,null,107]
[null,null,null,null,null,null,null,null,null,null,null,null,null,null,null,null,null,null,null,null,null,null,null,null,null,null,null,null,null,null,null,null,null,null,null,null,null,null,null,null,null,null,null,null,null,null,null,null,null,null,null,null,null,null,null,null,null,null,null,null,null,null,null,null,null,108]
[null,null,null,null,null,null,null,null,null,null,null,null,null,null,null,null,null,null,null,null,null,null,null,null,null,null,null,null,null,null,null,null,null,null,null,null,null,null,null,null,null,null,null,null,null,null,null,null,null,null,null,null,null,null,null,null,null,null,null,null,null,null,null,null,null,109]
[null,null,null,null,null,null,null,null,null,null,null,null,null,null,null,null,null,null,null,null,null,null,null,null,null,null,null,null,null,null,null,null,null,null,null,null,null,null,null,null,null,null,null,null,null,null,null,null,null,null,null,null,null,null,null,null,null,null,null,null,null,null,null,null,null,110]
[null,null,null,null,null,null,null,null,null,null,null,null,null,null,null,null,null,null,null,null,null,null,null,null,null,null,null,null,null,null,null,null,null,null,null,null,null,null,null,null,null,null,null,null,null,null,null,null,null,null,null,null,null,null,null,null,null,null,null,null,null,null,null,null,null,111]
[null,null,null,null,null,null,null,null,null,null,null,null,null,null,null,null,null,null,null,null,null,null,null,null,null,null,null,null,null,null,null,null,null,null,null,null,null,null,null,null,null,null,null,null,null,null,null,null,null,null,null,null,null,null,null,null,null,null,null,null,null,null,null,null,null,112]
[null,null,null,null,null,null,null,null,null,null,null,null,null,null,null,null,null,null,null,null,null,null,null,null,null,null,null,null,null,null,null,null,null,null,null,null,null,null,null,null,null,null,null,null,null,null,null,null,null,null,null,null,null,null,null,null,null,null,null,null,null,null,null,null,null,113]
[null,null,null,null,null,null,null,null,null,null,null,null,null,null,null,null,null,null,null,null,null,null,null,null,null,null,null,null,null,null,null,null,null,null,null,null,null,null,null,null,null,null,null,null,null,null,null,null,null,null,null,null,null,null,null,null,null,null,null,null,null,null,null,null,null,114]
[null,null,null,null,null,null,null,null,null,null,null,null,null,null,null,null,null,null,null,null,null,null,null,null,null,null,null,null,null,null,null,null,null,null,null,null,null,null,null,null,null,null,null,null,null,null,null,null,null,null,null,null,null,null,null,null,null,null,null,null,null,null,null,null,null,115]
[null,null,null,null,null,null,null,null,null,null,null,null,null,null,null,null,null,null,null,null,null,null,null,null,null,null,null,null,null,null,null,null,null,null,null,null,null,null,null,null,null,null,null,null,null,null,null,null,null,null,null,null,null,null,null,null,null,null,null,null,null,null,null,null,null,116]
[null,null,null,null,null,null,null,null,null,null,null,null,null,null,null,null,null,null,null,null,null,null,null,null,null,null,null,null,null,null,null,null,null,null,null,null,null,null,null,null,null,null,null,null,null,null,null,null,null,null,null,null,null,null,null,null,null,null,null,null,null,null,null,null,null,117]
[null,null,null,null,null,null,null,null,null,null,null,null,null,null,null,null,null,null,null,null,null,null,null,null,null,null,null,null,null,null,null,null,null,null,null,null,null,null,null,null,null,null,null,null,null,null,null,null,null,null,null,null,null,null,null,null,null,null,null,null,null,null,null,null,null,118]
[null,null,null,null,null,null,null,null,null,null,null,null,null,null,null,null,null,null,null,null,null,null,null,null,null,null,null,null,null,null,null,null,null,null,null,null,null,null,null,null,null,null,null,null,null,null,null,null,null,null,null,null,null,null,null,null,null,null,null,null,null,null,null,null,null,119]
[null,null,null,null,null,null,null,null,null,null,null,null,null,null,null,null,null,null,null,null,null,null,null,null,null,null,null,null,null,null,null,null,null,null,null,null,null,null,null,null,null,null,null,null,null,null,null,null,null,null,null,null,null,null,null,null,null,null,null,null,null,null,null,null,null,120]
[null,null,null,null,null,null,null,null,null,null,null,null,null,null,null,null,null,null,null,null,null,null,null,null,null,null,null,null,null,null,null,null,null,null,null,null,null,null,null,null,null,null,null,null,null,null,null,null,null,null,null,null,null,null,null,null,null,null,null,null,null,null,null,null,null,121]
[null,null,null,null,null,null,null,null,null,null,null,null,null,null,null,null,null,null,null,null,null,null,null,null,null,null,null,null,null,null,null,null,null,null,null,null,null,null,null,null,null,null,null,null,null,null,null,null,null,null,null,null,null,null,null,null,null,null,null,null,null,null,null,null,null,122]
[null,null,null,null,null,null,null,null,null,null,null,null,null,null,null,null,null,null,null,null,null,null,null,null,null,null,null,null,null,null,null,null,null,null,null,null,null,null,null,null,null,null,null,null,null,null,null,null,null,null,null,null,null,null,null,null,null,null,null,null,null,null,null,null,null,123]
[null,null,null,null,null,null,null,null,null,null,null,null,null,null,null,null,null,null,null,null,null,null,null,null,null,null,null,null,null,null,null,null,null,null,null,null,null,null,null,null,null,null,null,null,null,null,null,null,null,null,null,null,null,null,null,null,null,null,null,null,null,null,null,null,null,124]
[null,null,null,null,null,null,null,null,null,null,null,null,null,null,null,null,null,null,null,null,null,null,null,null,null,null,null,null,null,null,null,null,null,null,null,null,null,null,null,null,null,null,null,null,null,null,null,null,null,null,null,null,null,null,null,null,null,null,null,null,null,null,null,null,null,125]
[null,null,null,null,null,null,null,null,null,null,null,null,null,null,null,null,null,null,null,null,null,null,null,null,null,null,null,null,null,null,null,null,null,null,null,null,null,null,null,null,null,null,null,null,null,null,null,null,null,null,null,null,null,null,null,null,null,null,null,null,null,null,null,null,null,126]
[null,null,null,null,null,null,null,null,null,null,null,null,null,null,null,null,null,null,null,null,null,null,null,null,null,null,null,null,null,null,null,null,null,null,null,null,null,null,null,null,null,null,null,null,null,null,null,null,null,null,null,null,null,null,null,null,null,null,null,null,null,null,null,null,null,127]
[null,null,null,null,null,null,null,null,null,null,null,null,null,null,null,null,null,null,null,null,null,null,null,null,null,null,null,null,null,null,null,null,null,null,null,null,null,null,null,null,null,null,null,null,null,null,null,null,null,null,null,null,null,null,null,null,null,null,null,null,null,null,null,null,null,128]
[null,null,null,null,null,null,null,null,null,null,null,null,null,null,null,null,null,null,null,null,null,null,null,null,null,null,null,null,null,null,null,null,null,null,null,null,null,null,null,null,null,null,null,null,null,null,null,null,null,null,null,null,null,null,null,null,null,null,null,null,null,null,null,null,null,129]
[null,null,null,null,null,null,null,null,null,null,null,null,null,null,null,null,null,null,null,null,null,null,null,null,null,null,null,null,null,null,null,null,null,null,null,null,null,null,null,null,null,null,null,null,null,null,null,null,null,null,null,null,null,null,null,null,null,null,null,null,null,null,null,null,null,130]